[Event "FIDE World Cup O12-TB 2024"]
[Site "Batumi"]
[Date "2024.07.01"]
[Round "1.20"]
[White "Yusupov, Rauf"]
[Black "Yang, Maxwell"]
[Result "1-0"]
[ECO "A35"]
[WhiteElo "1800"]
[BlackElo "1979"]
[Annotator "TA"]
[PlyCount "137"]
[EventDate "2024.06.23"]
[EventType "swiss"]
[EventCountry "GEO"]
[SourceTitle "playchess.com"]
[Source "ChessBase"]
[SourceQuality "1"]
[TimeControl "5400+30"]

{[%evp 20,137,-1,-4,30,15,19,28,27,28,50,31,72,61,69,43,62,15,19,0,15,20,17,16,20,14,16,0,77,78,73,70,118,112,130,124,128,120,116,95,171,159,159,159,173,164,129,138,120,0,0,0,0,0,0,0,452,437,378,454,416,441,498,491,516,510,698,644,29971,29973,29972,29974,29974,29975,29975,29976,29976,29977,29977,29977,29978,29979,29979,29980,29980,29981,29980,29978,29978,29979,29979,29980,29981,29980,29982,29982,29983,29984,29983,29984,29984,29985,29987,29986,29987,29988,29987,29988,29988,29989,29990,29991,29991,29992,29992,29993,29994,29995,29995,29994]} 1. d4 {[%emt 0:00:02]} Nf6 {[%emt 0:02:28]} 2. Nf3 {[%emt 0:00:06]} g6 {[%emt 0:00:05]} 3. c4 {[%emt 0:00:03]} Bg7 {[%emt 0:00:06]} 4. Nc3 {[%emt 0:00:04]} d5 {[%emt 0:00:04]} 5. Bf4 {[%emt 0:00:13]} O-O {[%emt 0:00:21]} 6. e3 {[%emt 0:00:03]} c5 {[%emt 0:00:23]} 7. Be2 {[%emt 0:00:41][%cal Bf1e2,Be2c4,Bc4b3][%mdl 32]} dxc4 {[%emt 0:00:50]} 8. Bxc4 {[%emt 0:00:47]} Nc6 {[%emt 0:01:25]} 9. O-O {[%emt 0:00:21]} cxd4 {[%emt 0:09:46]} 10. Nxd4 {[%emt 0:05:40]} Nxd4 {[%emt 0:03:45]} 11. exd4 {[%emt 0:06:20]} Bf5 {[%emt 0:05:47]} 12. Re1 {[%emt 0:08:39]} Rc8 {[%emt 0:03:27]} 13. Bb3 {[%emt 0:02:26]} Re8 {[%emt 0:11:13] White has an edge.} 14. Be5 {[%emt 0:06:57]} Qb6 {[%emt 0:07:29]} 15. Qf3 {[%emt 0:07:31]} Be6 {[%emt 0:05:55]} 16. Bxe6 {[%emt 0:11:31]} fxe6 {[%emt 0:00:37]} 17. Re2 {[%emt 0:04:23] White is more active.} Qc6 {[%emt 0:05:47]} 18. Qxc6 {[%emt 0:01:39]} (18. Qf4 $14 {was preferrable.}) 18... Rxc6 $11 {[%emt 0:00:15]} 19. Rae1 {[%emt 0:00:08]} Kf7 {[%emt 0:00:16]} 20. g3 {[%emt 0:03:57]} Rec8 {[%emt 0:09:29]} 21. Kg2 {[%emt 0:03:25]} a6 {[%emt 0:00:47]} 22. a4 {[%emt 0:10:15]} b6 {[%emt 0:03:58]} 23. h3 {[%emt 0:06:04]} Bh6 {[%emt 0:03:44] [#]} (23... Rd8 $11 {keeps the balance.}) 24. Bxf6 $1 $16 {[%emt 0:03:08]} exf6 {[%emt 0:04:24]} 25. d5 {[%emt 0:01:25]} Rd6 {[%emt 0:10:53]} (25... exd5 $14 26. Re7+ (26. Nxd5 Rd6 $14) 26... Kg8) 26. Rxe6 {[%emt 0:00:41]} Bf8 {[%emt 0:00:33]} 27. Rxd6 {[%emt 0:01:11]} Bxd6 {[%emt 0:00:07][%mdl 4096] Endgame. KRB-KRN} 28. Re6 {[%emt 0:00:08]} Rd8 {[%emt 0:01:33]} 29. Ne4 {[%emt 0:03:27][%csl LRd6,LRf6]} Be5 {[%emt 0:02:11]} (29... Be7 $16 {was worth a try.}) 30. Rxb6 $18 {[%emt 0:04:58]} Rxd5 {[%emt 0:00:15]} 31. b4 {[%emt 0:01:34][%cal Oa4a5,Bb2b4,Bb4b5][%mdl 32]} a5 {[%emt 0:04:35]} 32. b5 {[%emt 0:01:51]} Rd4 {[%emt 0:00:16]} 33. Nc5 {[%emt 0:00:42]} Rc4 {[%emt 0:00:12]} 34. Nb7 {[%emt 0:03:35]} (34. Rc6 $16 {aiming for b6.} Bd4 35. b6 (35. Rc7+ Ke8 $18)) 34... Rxa4 $11 {[%emt 0:01:15]} 35. Ra6 {[%emt 0:00:05]} Rb4 {[%emt 0:00:28]} 36. Rxa5 {[%emt 0:02:45]} Ke7 {[%emt 0:02:21] Against Nd8} 37. Nc5 {[%emt 0:00:51]} Bc7 $2 {[%emt 0:01:09][%mdl 8192] White now steadily converts the win.} (37... Bd4 $1 $11 {and Black stays safe.} 38. Nd3 Rb3) 38. Ra7 $18 {[%emt 0:00:11]} Kd6 {[%emt 0:00:05] [#]} 39. Rxc7 {[%emt 0:00:54][%mdl 512]} Rxb5 {[%emt 0:01:04] KRN-KR} (39... Kxc7 $2 {loses.} 40. Na6+ Kb6 41. Nxb4) 40. Na6 {[%emt 0:00:04]} ({Don't take} 40. Rxh7 Rxc5 41. Rh6 Rg5 $18) 40... Ra5 {[%emt 0:00:09]} 41. Ra7 {[%emt 0:00:17]} h5 {[%emt 0:00:17]} 42. Ra8 {[%emt 0:00:14]} Ke7 {[%emt 0:00:57]} 43. Nc7 {[%emt 0:00:08]} Rxa8 {[%emt 0:00:38]} 44. Nxa8 {[%emt 0:00:04] KN-K3P. White mates.} Kd6 {[%emt 0:00:05]} 45. Nb6 {[%emt 0:00:09]} Kc6 {[%emt 0:00:09]} 46. Nc4 {[%emt 0:00:07]} Kd5 {[%emt 0:00:06]} 47. Nd2 {[%emt 0:00:09]} Ke5 {[%emt 0:00:06]} 48. Kf3 {[%emt 0:00:06]} g5 {[%emt 0:00:17]} 49. Ke3 {[%emt 0:00:31]} Kf5 {[%emt 0:01:24]} 50. Nf3 {[%emt 0:01:00]} Ke6 {[%emt 0:00:42]} 51. Ke4 {[%emt 0:00:40]} f5+ {[%emt 0:01:05]} 52. Kd4 {[%emt 0:00:06]} Kf6 {[%emt 0:00:04]} 53. Kd5 {[%emt 0:00:09]} g4 {[%emt 0:01:11]} 54. hxg4 {[%emt 0:00:11]} fxg4 {[%emt 0:00:18] KN-KPP} 55. Nh4 {[%emt 0:00:05]} Kg5 {[%emt 0:00:30]} 56. Ke5 {[%emt 0:00:07]} Kh6 {[%emt 0:00:06]} 57. Kf6 {[%emt 0:00:10]} Kh7 {[%emt 0:00:02]} 58. Kg5 {[%emt 0:00:06]} Kg7 {[%emt 0:00:11]} 59. Kxh5 {[%emt 0:00:05]} Kf6 {[%emt 0:00:05]} 60. Kxg4 {[%emt 0:00:06]} Kf7 {[%emt 0:00:07]} 61. Kg5 {[%emt 0:00:05]} Kg7 {[%emt 0:00:08]} 62. g4 {[%emt 0:00:03]} Kf7 {[%emt 0:00:04]} 63. Kh6 {[%emt 0:00:04]} Kg8 {[%emt 0:00:04]} 64. g5 {[%emt 0:00:31]} Kh8 {[%emt 0:00:14]} 65. g6 {[%emt 0:00:06]} Kg8 {[%emt 0:00:08]} 66. g7 {[%emt 0:00:00]} Kf7 {[%emt 0:00:07]} 67. Kh7 {[%emt 0:00:05]} Kf6 {[%emt 0:00:07]} 68. g8=Q {[%emt 0:00:05]} Ke7 {[%emt 0:00:09]} 69. Qg6 {[%emt 0:00:07] Weighted Error Value: White=0.09 (flawless) /Black=0.53.  Loses game:     	---       	Black=1      Mistake:       	White=2     	Black=3      Inaccurate:     	White=1     	Black=3      OK:         	White=14    	Black=7      Best:        	White=3     	Black=4      Strong:       	White=1     	---        Brilliant:      	White=1     	---} 1-0

[Event "FIDE World Cup O12-TB 2024"]
[Site "Batumi"]
[Date "2024.07.01"]
[Round "1.22"]
[White "Atar, Semih Akif"]
[Black "Todua, Andria"]
[Result "1/2-1/2"]
[ECO "E17"]
[WhiteElo "1660"]
[BlackElo "1599"]
[Annotator "NA RC"]
[PlyCount "71"]
[EventDate "2024.06.23"]
[EventType "swiss"]
[EventCountry "GEO"]
[SourceTitle "playchess.com"]
[Source "ChessBase"]
[SourceQuality "1"]
[TimeControl "5400+30"]

1. c4 {[%emt 0:00:03]} e6 {[%emt 0:00:02]} 2. g3 {[%emt 0:00:04]} Nf6 {[%emt 0:00:05]} 3. Bg2 {[%emt 0:00:07]} d5 {[%emt 0:00:04]} 4. Nf3 {[%emt 0:00:28]} c5 {[%emt 0:00:43]} 5. e3 {[%emt 0:00:20]} Be7 {[%emt 0:00:58]} 6. O-O {[%emt 0:00:23]} O-O {[%emt 0:00:28]} 7. cxd5 {[%emt 0:00:19]} exd5 {[%emt 0:00:08]} 8. d4 {[%emt 0:00:23]} b6 {[%emt 0:02:46]} 9. b3 {[%emt 0:12:51]} Bb7 {[%emt 0:02:51]} 10. Bb2 {[%emt 0:03:43]} Nbd7 {[%emt 0:01:18]} 11. Nc3 {[%emt 0:11:56]} Re8 {[%emt 0:05:15]} 12. Qc2 {[%emt 0:06:58]} Rc8 {[%emt 0:02:48]} 13. Rfd1 {[%emt 0:01:21]} Ne4 {[%emt 0:00:51]} 14. Nd2 {[%emt 0:21:27]} Nxc3 {[%emt 0:00:57]} 15. Bxc3 {[%emt 0:07:25]} cxd4 {[%emt 0:00:04]} 16. exd4 {[%emt 0:00:12]} Bb4 {[%emt 0:00:03]} 17. Nc4 {[%emt 0:06:24]} Bxc3 {[%emt 0:04:11]} 18. Qxc3 {[%emt 0:00:30]} Ba8 {[%emt 0:00:10]} 19. Re1 {[%emt 0:11:51]} Rxe1+ {[%emt 0:00:39]} 20. Rxe1 {[%emt 0:00:12]} dxc4 {[%emt 0:00:02]} 21. Bh3 {[%emt 0:08:00]} Rc7 {[%emt 0:04:36]} 22. bxc4 {[%emt 0:05:59]} Nf6 {[%emt 0:00:22]} 23. Re5 {[%emt 0:00:32]} Re7 {[%emt 0:01:44]} 24. Qe3 {[%emt 0:00:29]} Rxe5 {[%emt 0:04:37]} 25. Qxe5 {[%emt 0:00:08]} Bb7 {[%emt 0:01:31]} 26. d5 {[%emt 0:00:51]} Ba6 {[%emt 0:01:42]} 27. Qd4 {[%emt 0:00:32]} Qd6 {[%emt 0:00:20]} 28. Qd3 {[%emt 0:00:31]} Kf8 {[%emt 0:01:13]} 29. Qe2 {[%emt 0:00:20]} Qe7 {[%emt 0:02:34]} 30. Qc2 {[%emt 0:00:29]} Qc7 {[%emt 0:04:06]} 31. Qb3 {[%emt 0:00:41]} Qc5 {[%emt 0:01:23]} 32. Qa4 {[%emt 0:00:16]} Bxc4 {[%emt 0:19:30]} 33. Qxa7 {[%emt 0:00:36]} Nxd5 {[%emt 0:00:04]} 34. Qb8+ {[%emt 0:00:29]} Ke7 {[%emt 0:00:39]} 35. Qe5+ {[%emt 0:00:08]} Kd8 {[%emt 0:00:27]} 36. Qb8+ {[%emt 0:00:12]} 1/2-1/2

[Event "FIDE World Cup O12-TB 2024"]
[Site "Batumi"]
[Date "2024.07.01"]
[Round "1.23"]
[White "Lee, Daniel Joshua"]
[Black "Khubuluri, Zaal"]
[Result "1-0"]
[ECO "B33"]
[WhiteElo "1717"]
[BlackElo "1501"]
[Annotator "NA RC"]
[PlyCount "63"]
[EventDate "2024.06.23"]
[EventType "swiss"]
[EventCountry "GEO"]
[SourceTitle "playchess.com"]
[Source "ChessBase"]
[SourceQuality "1"]
[TimeControl "5400+30"]

1. e4 {[%emt 0:00:03]} c5 {[%emt 0:00:06]} 2. Nf3 {[%emt 0:00:05]} Nc6 {[%emt 0:00:06]} 3. d4 {[%emt 0:00:12]} cxd4 {[%emt 0:00:06]} 4. Nxd4 {[%emt 0:00:07]} Nf6 {[%emt 0:00:07]} 5. Nc3 {[%emt 0:00:14]} e5 {[%emt 0:00:08]} 6. Ndb5 {[%emt 0:00:12]} d6 {[%emt 0:00:10]} 7. Nd5 {[%emt 0:00:06]} Nxd5 {[%emt 0:00:13]} 8. exd5 {[%emt 0:00:07]} Nb8 {[%emt 0:00:06]} 9. c4 {[%emt 0:00:10]} Be7 {[%emt 0:00:32]} 10. Bd3 {[%emt 0:00:17]} O-O {[%emt 0:00:54]} 11. O-O {[%emt 0:00:05]} f5 {[%emt 0:07:29]} 12. f4 {[%emt 0:00:52]} e4 {[%emt 0:04:43]} 13. Be2 {[%emt 0:00:14]} Nd7 {[%emt 0:09:24]} 14. Be3 {[%emt 0:02:42]} Nb6 {[%emt 0:12:31]} 15. Kh1 {[%emt 0:04:42]} Bf6 {[%emt 0:07:49]} 16. Rb1 {[%emt 0:04:04]} a6 {[%emt 0:08:08]} 17. Nd4 {[%emt 0:01:04]} Bd7 {[%emt 0:06:08]} 18. b3 {[%emt 0:03:44]} Rc8 {[%emt 0:08:56]} 19. g4 {[%emt 0:07:48]} Bxd4 {[%emt 0:17:31]} 20. Qxd4 {[%emt 0:05:46]} Na8 {[%emt 0:01:50]} 21. Rg1 {[%emt 0:14:39]} Qf6 {[%emt 0:06:39]} 22. g5 {[%emt 0:04:25]} Qxd4 {[%emt 0:00:52]} 23. Bxd4 {[%emt 0:00:05]} g6 {[%emt 0:00:14]} 24. Kg2 {[%emt 0:03:32]} Nc7 {[%emt 0:00:54]} 25. h4 {[%emt 0:01:58]} b5 {[%emt 0:01:53]} 26. Rb2 {[%emt 0:03:22]} bxc4 {[%emt 0:00:57]} 27. bxc4 {[%emt 0:00:28]} Rb8 {[%emt 0:00:40]} 28. Rgb1 {[%emt 0:00:32]} Rxb2 {[%emt 0:01:07]} 29. Rxb2 {[%emt 0:00:05]} Na8 {[%emt 0:01:55]} 30. Rb7 {[%emt 0:02:50]} Rd8 {[%emt 0:02:13]} 31. Bf6 {[%emt 0:00:16]} Bc8 {[%emt 0:00:45]} 32. Rb8 {[%emt 0:01:00]} 1-0

[Event "FIDE World Cup O12-TB 2024"]
[Site "Batumi"]
[Date "2024.07.01"]
[Round "1.24"]
[White "Cronje, Johannes Christiaan"]
[Black "Tavberidze, Alexandre"]
[Result "0-1"]
[ECO "A36"]
[WhiteElo "1504"]
[BlackElo "1529"]
[Annotator "NA RC"]
[PlyCount "128"]
[EventDate "2024.06.23"]
[EventType "swiss"]
[EventCountry "GEO"]
[SourceTitle "playchess.com"]
[Source "ChessBase"]
[SourceQuality "1"]
[TimeControl "5400+30"]

1. c4 {[%emt 0:00:02]} c5 {[%emt 0:00:03]} 2. g3 {[%emt 0:00:11]} Nc6 {[%emt 0:00:20]} 3. Bg2 {[%emt 0:00:11]} g6 {[%emt 0:00:13]} 4. Nc3 {[%emt 0:00:09]} Bg7 {[%emt 0:00:04]} 5. e3 {[%emt 0:00:12]} d6 {[%emt 0:00:31]} 6. Nge2 {[%emt 0:00:17]} e6 {[%emt 0:00:52]} 7. O-O {[%emt 0:00:26]} Nge7 {[%emt 0:00:41]} 8. d4 {[%emt 0:01:13]} O-O {[%emt 0:01:14]} 9. b3 {[%emt 0:03:54]} Rb8 {[%emt 0:17:54]} 10. Bb2 {[%emt 0:02:40]} b6 {[%emt 0:07:12]} 11. dxc5 {[%emt 0:01:38]} dxc5 {[%emt 0:00:53]} 12. Qxd8 {[%emt 0:02:17]} Rxd8 {[%emt 0:00:06]} 13. Rfd1 {[%emt 0:02:01]} Bb7 {[%emt 0:01:11]} 14. Rxd8+ {[%emt 0:01:44]} Rxd8 {[%emt 0:00:06]} 15. Rd1 {[%emt 0:00:45]} Nf5 {[%emt 0:13:21]} 16. Rxd8+ {[%emt 0:01:08]} Nxd8 {[%emt 0:01:33]} 17. Bxb7 {[%emt 0:03:54]} Nxb7 {[%emt 0:00:04]} 18. Nd1 {[%emt 0:00:48]} Nbd6 {[%emt 0:03:55]} 19. Bxg7 {[%emt 0:00:46]} Kxg7 {[%emt 0:00:06]} 20. Ndc3 {[%emt 0:00:32]} Ne7 {[%emt 0:03:39]} 21. e4 {[%emt 0:05:38]} Nc6 {[%emt 0:02:09]} 22. f4 {[%emt 0:01:21]} f6 {[%emt 0:02:56]} 23. Kf2 {[%emt 0:01:17]} e5 {[%emt 0:01:47]} 24. Nd5 {[%emt 0:08:16]} Nxe4+ {[%emt 0:00:29]} 25. Ke3 {[%emt 0:00:59]} Nd6 {[%emt 0:00:31]} 26. fxe5 {[%emt 0:00:58]} Nxe5 {[%emt 0:00:23]} 27. h3 {[%emt 0:00:31]} f5 {[%emt 0:01:26]} 28. Nef4 {[%emt 0:01:07]} Kf7 {[%emt 0:02:36]} 29. a3 {[%emt 0:01:14]} Ne4 {[%emt 0:00:42]} 30. Ne2 {[%emt 0:00:47]} Nc6 {[%emt 0:01:58]} 31. g4 {[%emt 0:01:08]} Nd6 {[%emt 0:00:59]} 32. gxf5 {[%emt 0:01:42]} Nxf5+ {[%emt 0:00:06]} 33. Ke4 {[%emt 0:02:20]} Na5 {[%emt 0:00:59]} 34. Nc1 {[%emt 0:01:00]} Nd4 {[%emt 0:00:27]} 35. Nc7 {[%emt 0:00:48]} Ndxb3 {[%emt 0:00:47]} 36. Nxb3 {[%emt 0:00:23]} Nxb3 {[%emt 0:00:03]} 37. Nb5 {[%emt 0:00:21]} Ke6 {[%emt 0:11:18]} 38. Nxa7 {[%emt 0:00:31]} Kd7 {[%emt 0:00:43]} 39. Nb5 {[%emt 0:00:45]} Nd2+ {[%emt 0:01:17]} 40. Kd5 {[%emt 0:01:20]} Nf3 {[%emt 0:00:14]} 41. Nc3 {[%emt 0:01:34]} Ng5 {[%emt 0:00:17]} 42. Na4 {[%emt 0:00:27]} Kc7 {[%emt 0:00:17]} 43. Nxc5 {[%emt 0:00:40]} bxc5 {[%emt 0:00:09]} 44. Kxc5 {[%emt 0:00:07]} Nxh3 {[%emt 0:00:51]} 45. a4 {[%emt 0:00:13]} Nf4 {[%emt 0:00:34]} 46. a5 {[%emt 0:00:25]} Ne6+ {[%emt 0:00:11]} 47. Kd5 {[%emt 0:00:59]} Nd8 {[%emt 0:00:09]} 48. Kc5 {[%emt 0:00:43]} Nb7+ {[%emt 0:00:05]} 49. Kb5 {[%emt 0:00:15]} Nxa5 {[%emt 0:00:10]} 50. Kxa5 {[%emt 0:00:08]} h5 {[%emt 0:00:11]} 51. Kb4 {[%emt 0:00:05]} h4 {[%emt 0:00:05]} 52. Kc3 {[%emt 0:00:09]} h3 {[%emt 0:00:06]} 53. Kd2 {[%emt 0:00:02]} h2 {[%emt 0:00:06]} 54. Ke2 {[%emt 0:00:15]} h1=Q {[%emt 0:00:04]} 55. c5 {[%emt 0:00:13]} Qh3 {[%emt 0:00:10]} 56. c6 {[%emt 0:00:09]} Kxc6 {[%emt 0:00:02]} 57. Kf2 {[%emt 0:00:10]} Qd3 {[%emt 0:00:06]} 58. Ke1 {[%emt 0:00:11]} Qc2 {[%emt 0:00:03]} 59. Kf1 {[%emt 0:00:10]} Qd2 {[%emt 0:00:05]} 60. Kg1 {[%emt 0:00:07]} Qe2 {[%emt 0:00:06]} 61. Kh1 {[%emt 0:00:06]} Kd5 {[%emt 0:00:03]} 62. Kg1 {[%emt 0:00:11]} Ke4 {[%emt 0:00:04]} 63. Kh1 {[%emt 0:00:10]} Kf3 {[%emt 0:00:02]} 64. Kg1 {[%emt 0:00:13]} Qg2# {[%emt 0:00:03]} 0-1